lending/lending_fUSD_20250706
["ID","MTS","AMOUNT","RATE_DAILY","PERIOD"]
[370012378,1751831432128,-2527.18217804,0.000189,2]
[370012379,1751831432138,-2300.0,0.000189,6]
[370012381,1751831432147,-813.95557294,0.00018904,2]
[370012383,1751831432167,-473.04442706,0.00018904,2]
[370012384,1751831432176,-519.93953938,0.00018917,2]
[370012385,1751831432185,-1287.0,0.00018918,2]
[370012386,1751831432194,-1287.0,0.00018955,2]
[370012387,1751831432204,-338.24,0.00018972,2]
[370012388,1751831432213,-700.66430637,0.00018982,2]
[370012389,1751831432222,-1316.0,0.00018987,2]
[370012390,1751831432232,-1178.07088661,0.00019006,2]
[370012394,1751831432345,-108.92911339,0.00019006,2]
[370012395,1751831432355,-200.0,0.00019025,2]
[370012396,1751831432365,-562.07088661,0.00019035,2]
[370012397,1751831432376,-724.92911339,0.00019035,2]
[370012398,1751831432386,-144.96720661,0.00019067,2]
[370012577,1751831440037,-1510.84734943,0.000189,2]
[370012579,1751831440047,-155.03279339,0.00019067,2]
[370012581,1751831440056,-150.0,0.0001907,2]
[370012583,1751831440065,-852.69329933,0.00019078,2]
[370013043,1751831444596,-759.48440006,0.00018253,2]
[370013045,1751831444606,-974.24270067,0.00019078,2]
[370013046,1751831444615,-2133.62667163,0.00019078,2]
[370013048,1751831444624,-1000.0,0.00019078,2]
[370013050,1751831444634,-16834.64622764,0.00019078,2]
[370013185,1751831446124,-1085.8,0.00019078,2]
[370013536,1751832170302,-240.0,0.000181,2]
[370013537,1751832170327,-173.06,0.00018134,2]
[370013538,1751832170348,-17406.94,0.00018162,2]
[370013555,1751832632582,-303.37919517,0.00017547,2]
[370013558,1751832637082,156.79,0.00013699,2]
[370013565,1751832638241,-230.62080483,0.00017547,2]
[370013566,1751832638253,-127.71404681,0.0001814,2]
[370013567,1751832638295,-210.44595319,0.0001814,2]
[370013568,1751832638305,-200.0,0.00018151,7]
[370013569,1751832638316,-300.0,0.00018161,2]
[370013570,1751832638326,-10662.98,0.00018162,2]
[370013571,1751832638336,-1000.0,0.00018173,2]
[370013572,1751832638347,-1300.0,0.000188,6]
[370013573,1751832638357,-2700.0,0.000189,6]
[370013574,1751832638367,-509.63962361,0.000189,2]
[370013575,1751832638384,-482.0,0.000189,2]
[370013576,1751832638396,-468.84614738,0.000189,2]
[370013577,1751832638406,-338.16,0.00019047,2]
[370013578,1751832638417,-207.4,0.00019067,2]
[370013583,1751832638485,-356.187215,0.00019078,2]
[370013585,1751832638494,-1461.549,0.00019078,2]
[370013587,1751832638504,-212.635,0.00019078,2]
[370013589,1751832638513,-600.95622,0.00019078,2]
[370013591,1751832638523,-613.79613628,0.00019078,2]
[370013593,1751832638532,-159.94802385,0.00019078,2]
[370013595,1751832638541,-262.16331832,0.00019078,2]
[370013597,1751832638551,-300.0,0.00019078,2]
[370013599,1751832638560,-1000.0,0.00019078,2]
[370013601,1751832638571,-5066.92937266,0.00019078,2]
[370013752,1751832640188,-548.7479998,0.00019078,2]
[370013754,1751832640200,-2035.93638179,0.00019078,2]
[370013757,1751832640212,-543.5,0.00019078,2]
[370013765,1751832640297,-1566.92958918,0.00019078,2]
[370014154,1751832644437,-430.3,0.00019078,2]
[370014283,1751832646147,-1675.36411372,0.00019078,2]
[370014339,1751833523159,200.0,0.00016876,7]
[370014354,1751833831364,-150.0,0.00015998,2]
[370014356,1751833831374,-150.0,0.00016243,2]
[370014358,1751833831383,-150.0,0.00016516,2]
[370014360,1751833831392,-150.0,0.00016543,2]
[370014362,1751833831402,-150.0,0.00016612,2]
[370014363,1751833831411,-500.96724705,0.00016726,2]
[370014364,1751833831569,-3427.14195595,0.00016726,2]
[370014365,1751833831578,-666.0,0.00016778,2]
[370014366,1751833831587,-2428.0,0.000168,3]
[370014367,1751833831596,-150.0,0.0001681,2]
[370014368,1751833831606,-150.0,0.00016812,2]
[370014369,1751833831615,-623.16,0.00016841,2]
[370014370,1751833831624,-437.35,0.00016854,2]
[370014371,1751833831633,-150.0,0.00016858,2]
[370014372,1751833831642,-150.0,0.0001687,2]
[370014373,1751833831651,-150.0,0.00016886,2]
[370014374,1751833831662,-150.0,0.00016894,2]
[370014375,1751833831671,-169.88,0.00016915,2]
[370014376,1751833831680,-1200.0,0.00016928,2]
[370014377,1751833831689,-2018.49,0.00016929,2]
[370014378,1751833831698,-150.0,0.00016976,2]
[370014379,1751833831708,-300.0,0.00016991,2]
[370014380,1751833831717,-150.0,0.00016992,2]
[370014381,1751833831726,-150.0,0.00016992,2]
[370014382,1751833831735,-150.0,0.00017007,2]
[370014383,1751833831744,-150.0,0.00017021,2]
[370014384,1751833831753,-150.0,0.0001703,2]
[370014385,1751833831763,-500.0,0.00017064,2]
[370014386,1751833831772,-500.0,0.00017064,2]
[370014387,1751833831781,-150.0,0.00017119,2]
[370014388,1751833831790,-150.0,0.00017131,2]
[370014389,1751833831799,-150.0,0.00017241,2]
[370014390,1751833831808,-150.0,0.00017266,2]
[370014391,1751833831822,-150.0,0.00017277,2]
[370014392,1751833831831,-5509.0,0.000173,5]
[370014393,1751833831840,-150.0,0.00017311,2]
[370014394,1751833831849,-150.0,0.00017317,2]
[370014395,1751833831858,-150.0,0.00017323,2]
[370014396,1751833831867,-150.0,0.00017343,2]
[370014397,1751833831876,-150.0,0.00017346,2]
[370014398,1751833831886,-150.0,0.0001737,2]
[370014399,1751833831895,-150.0,0.00017395,2]
[370014400,1751833831904,-150.0,0.0001743,2]
[370014401,1751833831913,-150.0,0.00017443,2]
[370014402,1751833831923,-150.0,0.00017592,2]
[370014403,1751833831932,-1316.0,0.0001761,2]
[370014404,1751833831941,-150.0,0.00017632,2]
[370014405,1751833831950,-1316.0,0.00017651,2]
[370014406,1751833831959,-1316.0,0.00017655,2]
[370014407,1751833831968,-150.0,0.00017664,2]
[370014408,1751833831976,-150.0,0.00017665,2]
[370014409,1751833831986,-150.0,0.00017714,2]
[370014410,1751833831995,-1287.0,0.00017724,2]
[370014411,1751833832004,-150.0,0.00017741,2]
[370014412,1751833832013,-500.0,0.00017741,2]
[370014413,1751833832022,-1098.0,0.00017741,2]
[370014414,1751833832031,-150.0,0.00017741,2]
[370014415,1751833832040,-150.0,0.00017741,2]
[370014416,1751833832049,-500.0,0.00017741,2]
[370014417,1751833832058,-150.0,0.00017752,2]
[370014418,1751833832067,-534.0,0.00017792,2]
[370014419,1751833832077,-14189.73055126,0.00017797,2]
[370014420,1751833832086,-150.0,0.00017797,2]
[370014421,1751833832096,-500.0,0.00017797,2]
[370014422,1751833832106,-500.0,0.00017797,2]
[370014423,1751833832115,-150.0,0.00017797,2]
[370014424,1751833832124,-500.0,0.00017797,2]
[370014425,1751833832133,-150.0,0.00017797,2]
[370014426,1751833832143,-500.0,0.00017797,2]
[370014427,1751833832152,-500.0,0.00017797,2]
[370014428,1751833832161,-150.0,0.00017797,2]
[370014429,1751833832171,-500.0,0.00017797,2]
[370014430,1751833832180,-500.0,0.00017797,2]
[370014431,1751833832190,-150.0,0.00017797,2]
[370014432,1751833832199,-500.0,0.00017797,2]
[370014433,1751833832208,-500.0,0.00017797,2]
[370014434,1751833832218,-500.0,0.00017797,2]
[370014435,1751833832227,-1312.0,0.00017797,2]
[370014436,1751833832236,-150.15580216,0.00017797,2]
[370014437,1751833832245,-150.0,0.00017797,2]
[370014438,1751833832255,-150.0,0.00017797,2]
[370014439,1751833832264,-250.0,0.00017797,2]
[370014440,1751833832273,-500.0,0.00017797,2]
[370014441,1751833832282,-150.0,0.00017797,2]
[370014442,1751833832291,-500.0,0.00017797,2]
[370014443,1751833832300,-150.0,0.00017848,2]
[370014444,1751833832309,-150.0,0.00017889,2]
[370014445,1751833832318,-150.0,0.00017897,2]
[370014446,1751833832328,-1411.80291216,0.000179,2]
[370014447,1751833832337,-1910.3,0.00017914,2]
[370014448,1751833832346,-150.0,0.0001792,2]
[370014449,1751833832355,-150.0,0.0001792,2]
[370014450,1751833832364,-150.0,0.0001792,2]
[370014451,1751833832373,-150.0,0.0001792,2]
[370014452,1751833832383,-150.0,0.00017953,2]
[370014453,1751833832393,-150.0,0.00017956,2]
[370014454,1751833832402,-250.0,0.00017961,2]
[370014455,1751833832412,-1287.0,0.00017985,2]
[370014456,1751833832421,-1287.0,0.00017989,2]
[370014457,1751833832431,-2500.0,0.00017993,2]
[370014458,1751833832440,-2500.0,0.00017993,2]
[370014459,1751833832450,-151.0,0.00018,2]
[370014460,1751833832459,-151.0,0.00018,2]
[370014461,1751833832468,-500.0,0.00018015,2]
[370014462,1751833832477,-1098.0,0.00018015,2]
[370014463,1751833832487,-500.0,0.00018015,2]
[370014464,1751833832496,-1287.0,0.00018065,2]
[370014465,1751833832505,-150.0,0.00018071,2]
[370014466,1751833832515,-500.0,0.00018071,2]
[370014467,1751833832524,-500.0,0.00018071,2]
[370014468,1751833832533,-500.0,0.00018071,2]
[370014469,1751833832542,-150.0,0.00018071,2]
[370014470,1751833832551,-500.0,0.00018071,2]
[370014471,1751833832561,-500.0,0.00018071,2]
[370014472,1751833832570,-500.0,0.00018071,2]
[370014473,1751833832579,-500.0,0.00018071,2]
[370014474,1751833832588,-150.0,0.00018071,2]
[370014475,1751833832598,-500.0,0.00018071,2]
[370014476,1751833832607,-579.0,0.00018071,2]
[370014477,1751833832616,-500.0,0.00018071,2]
[370014478,1751833832625,-1312.0,0.00018071,2]
[370014479,1751833832634,-200.0,0.00018071,2]
[370014480,1751833832644,-450.0,0.00018071,2]
[370014481,1751833832653,-500.0,0.00018071,2]
[370014482,1751833832662,-356.0,0.00018095,2]
[370014483,1751833832671,-150.0,0.000181,2]
[370014484,1751833832680,-1000.0,0.00018114,2]
[370014485,1751833832689,-1316.0,0.0001813,2]
[370014486,1751833832698,-150.0,0.00018133,2]
[370014487,1751833832708,-19155.4,0.00018142,2]
[370014488,1751833832717,-151.0,0.00018142,2]
[370014489,1751833832726,-151.0,0.00018142,2]
[370014490,1751833832736,-151.0,0.00018142,2]
[370014491,1751833832745,-151.0,0.00018142,2]
[370014492,1751833832755,-151.0,0.00018142,2]
[370014493,1751833832764,-151.0,0.00018142,2]
[370014494,1751833832773,-151.0,0.00018142,2]
[370014495,1751833832782,-167.48,0.00018143,2]
[370014496,1751833832791,-150.0,0.00018154,2]
[370014497,1751833832800,-150.0,0.00018158,2]
[370014498,1751833832809,-150.0,0.00018165,2]
[370014499,1751833832821,-150.0,0.00018165,2]
[370014500,1751833832830,-199.45352074,0.00018165,2]
[370014501,1751833832839,-150.0,0.00018165,2]
[370014502,1751833832848,-150.0,0.00018165,2]
[370014503,1751833832858,-150.0,0.00018165,2]
[370014504,1751833832868,-150.07632039,0.00018165,2]
[370014505,1751833832877,-500.0,0.00018165,2]
[370014506,1751833832887,-150.0,0.00018165,2]
[370014507,1751833832898,-150.24410175,0.00018165,2]
[370014508,1751833832907,-150.0,0.00018165,2]
[370014509,1751833832916,-150.0,0.00018165,2]
[370014510,1751833832926,-771.0,0.00018165,2]
[370014511,1751833832935,-150.0,0.00018165,2]
[370014512,1751833832944,-150.0,0.00018165,2]
[370014513,1751833832953,-150.0,0.00018165,2]
[370014514,1751833832963,-150.0,0.00018165,2]
[370014515,1751833832972,-150.5310635,0.00018194,2]
[370014516,1751833832983,-150.0,0.00018203,2]
[370014517,1751833832991,-152.148094,0.00018203,2]
[370014518,1751833833001,-151.0,0.00018203,2]
[370014519,1751833833011,-285.808314,0.00018203,2]
[370014520,1751833833022,-151.0,0.00018203,2]
[370014521,1751833833032,-151.0,0.00018203,2]
[370014522,1751833833043,-151.0,0.00018203,2]
[370014523,1751833833053,-274.636803,0.00018203,2]
[370014524,1751833833063,-274.636803,0.00018203,2]
[370014525,1751833833073,-151.0,0.00018203,2]
[370014526,1751833833083,-300.0,0.00018204,2]
[370014527,1751833833093,-6912.642,0.00018204,2]
[370014528,1751833833103,-300.0,0.00018204,2]
[370014529,1751833833113,-500.0,0.00018204,2]
[370014530,1751833833124,-207.4,0.00018204,2]
[370014531,1751833833134,-500.0,0.00018204,2]
[370014532,1751833833144,-500.0,0.00018204,2]
[370014533,1751833833154,-160.0,0.00018204,2]
[370014534,1751833833164,-500.0,0.00018204,2]
[370014535,1751833833174,-500.0,0.00018204,2]
[370014536,1751833833184,-500.0,0.00018204,2]
[370014537,1751833833194,-500.0,0.00018204,2]
[370014538,1751833833204,-500.0,0.00018204,2]
[370014539,1751833833214,-500.0,0.00018204,2]
[370014540,1751833833224,-500.0,0.00018204,2]
[370014541,1751833833234,-151.0,0.00018204,2]
[370014542,1751833833244,-500.0,0.00018204,2]
[370014543,1751833833254,-500.0,0.00018204,2]
[370014544,1751833833264,-500.0,0.00018204,2]
[370014545,1751833833274,-500.0,0.00018204,2]
[370014546,1751833833283,-500.0,0.00018204,2]
[370014547,1751833833293,-300.0,0.00018204,2]
[370014548,1751833833303,-500.0,0.00018204,2]
[370014549,1751833833312,-500.0,0.00018204,2]
[370014550,1751833833323,-300.0,0.00018204,2]
[370014551,1751833833332,-500.0,0.00018204,2]
[370014552,1751833833343,-300.0,0.00018204,2]
[370014553,1751833833357,-500.0,0.00018204,2]
[370014554,1751833833367,-300.0,0.00018204,2]
[370014555,1751833833377,-300.0,0.00018204,2]
[370014556,1751833833387,-500.0,0.00018204,2]
[370014557,1751833833397,-300.0,0.00018204,2]
[370014558,1751833833407,-500.0,0.00018204,2]
[370014559,1751833833418,-300.0,0.00018204,2]
[370014560,1751833833428,-300.0,0.00018204,2]
[370014561,1751833833438,-300.0,0.00018204,2]
[370014562,1751833833448,-300.0,0.00018204,2]
[370014563,1751833833458,-300.0,0.00018204,2]
[370014564,1751833833469,-151.0,0.00018204,2]
[370014565,1751833833479,-151.0,0.00018204,2]
[370014566,1751833833489,-151.0,0.00018204,2]
[370014567,1751833833499,-151.0,0.00018204,2]
[370014568,1751833833510,-274.636803,0.00018204,2]
[370014569,1751833833521,-274.636803,0.00018204,2]
[370014570,1751833833531,-152.131976,0.00018204,2]
[370014571,1751833833542,-151.0,0.00018204,2]
[370014572,1751833833552,-151.0,0.00018204,2]
[370014573,1751833833563,-151.0,0.00018204,2]
[370014574,1751833833573,-151.0,0.00018204,2]
[370014575,1751833833584,-151.0,0.00018204,2]
[370014576,1751833833594,-151.0,0.00018204,2]
[370014577,1751833833604,-151.0,0.00018204,2]
[370014578,1751833833615,-1316.0,0.00018215,2]
[370014579,1751833833625,-150.0,0.00018216,2]
[370014580,1751833833636,-2133.62667163,0.00018226,2]
[370014581,1751833833646,-463.37,0.00018241,2]
[370014582,1751833833657,-1505.00408782,0.00018259,2]
[370014583,1751833834119,-4620.36751288,0.00018259,2]
[370014584,1751833834132,-1043.0381533,0.00018259,2]
[370014585,1751833834142,-151.0,0.00018259,2]
[370014586,1751833834153,-151.0,0.00018259,2]
[370014587,1751833834163,-151.0,0.00018259,2]
[370014588,1751833834174,-151.0,0.00018259,2]
[370014589,1751833834184,-274.636803,0.00018259,2]
[370014590,1751833834194,-274.636803,0.00018259,2]
[370014591,1751833834204,-151.0,0.00018259,2]
[370014592,1751833834215,-759.48440006,0.00018283,2]
[370014593,1751833834225,-500.0,0.00018289,2]
[370014594,1751833834235,-1098.0,0.00018289,2]
[370014595,1751833834246,-7433.6409149,0.00018314,2]
[370014596,1751833834256,-171.221868,0.00018314,2]
[370014597,1751833834266,-151.0,0.00018314,2]
[370014598,1751833834276,-356.0,0.00018323,2]
[370014599,1751833834286,-356.0,0.00018326,2]
[370014600,1751833834296,-278.78,0.00018329,2]
[370014601,1751833834307,-356.0,0.00018335,2]
[370014602,1751833834316,-150.0,0.00018339,2]
[370014603,1751833834327,-469.41,0.00018341,2]
[370014604,1751833834337,-800.12,0.00018341,2]
[370014605,1751833834347,-500.0,0.00018345,2]
[370014606,1751833834357,-200.0,0.00018345,2]
[370014607,1751833834367,-500.0,0.00018345,2]
[370014608,1751833834378,-150.0,0.00018345,2]
[370014609,1751833834388,-500.0,0.00018345,2]
[370014610,1751833834399,-500.0,0.00018345,2]
[370014611,1751833834409,-200.0,0.00018345,2]
[370014612,1751833834419,-500.0,0.00018345,2]
[370014613,1751833834430,-150.0,0.00018345,2]
[370014614,1751833834440,-500.0,0.00018345,2]
[370014615,1751833834450,-500.0,0.00018345,2]
[370014616,1751833834460,-1312.0,0.00018345,2]
[370014617,1751833834470,-500.0,0.00018345,2]
[370014618,1751833834480,-151.0,0.00018345,2]
[370014619,1751833834491,-150.0,0.00018392,2]
[370014620,1751833834501,-150.0,0.00018395,2]
[370014621,1751833834511,-1367.91,0.000184,2]
[370014622,1751833834522,-151.0,0.000184,2]
[370014623,1751833834532,-151.0,0.000184,2]
[370014624,1751833834542,-151.0,0.000184,2]
[370014625,1751833834553,-151.0,0.000184,2]
[370014626,1751833834563,-274.636803,0.000184,2]
[370014627,1751833834574,-274.636803,0.000184,2]
[370014628,1751833834584,-356.0,0.00018404,2]
[370014629,1751833834594,-2133.62667156,0.00018412,2]
[370014630,1751833834605,-150.0,0.00018418,2]
[370014631,1751833834615,-150.0,0.00018439,2]
[370014632,1751833834625,-150.0,0.00018439,2]
[370014633,1751833834636,-282.42991309,0.00018439,2]
[370014634,1751833834647,-500.0,0.00018439,2]
[370014635,1751833834657,-150.0,0.00018439,2]
[370014636,1751833834667,-771.0,0.00018439,2]
[370014637,1751833834678,-150.0,0.00018439,2]
[370014638,1751833834688,-150.0,0.00018439,2]
[370014639,1751833834698,-150.0,0.00018439,2]
[370014640,1751833834708,-151.0,0.00018439,2]
[370014641,1751833834718,-150.0,0.00018444,2]
[370014642,1751833834728,-150.0,0.00018452,2]
[370014643,1751833834738,-271.28,0.00018461,3]
[370014644,1751833834748,-150.0,0.00018471,2]
[370014645,1751833834759,-150.0,0.00018474,2]
[370014646,1751833834769,-1165.61,0.00018478,2]
[370014647,1751833834778,-300.0,0.00018478,2]
[370014648,1751833834788,-434.4,0.00018478,2]
[370014649,1751833834798,-150.0,0.0001848,2]
[370014650,1751833834808,-1411.80291192,0.00018486,2]
[370014651,1751833834820,-1367.91,0.000185,2]
[370014652,1751833834830,-150.0,0.00018529,2]
[370014653,1751833834840,-500.0,0.00018563,2]
[370014654,1751833834850,-1098.0,0.00018563,2]
[370014655,1751833834860,-166.66,0.00018567,2]
[370014656,1751833834871,-150.0,0.00018581,2]
[370014657,1751833834881,-1636.0,0.00018583,2]
[370014658,1751833834891,-150.0,0.0001859,2]
[370014659,1751833834903,-356.0,0.00018597,2]
[370014660,1751833834914,-2133.62667156,0.00018598,2]
[370014661,1751833834926,-1367.91,0.000186,2]
[370014662,1751833834935,-151.0,0.000186,2]
[370014663,1751833834946,-180.710778,0.000186,2]
[370014664,1751833834955,-180.710778,0.000186,2]
[370014665,1751833834966,-151.0,0.000186,2]
[370014666,1751833834977,-380.0,0.00018619,2]
[370014667,1751833834987,-644.0,0.00018619,2]
[370014668,1751833834998,-200.0,0.00018619,2]
[370014669,1751833835008,-500.0,0.00018619,2]
[370014670,1751833835019,-350.0,0.00018619,2]
[370014671,1751833835029,-500.0,0.00018619,2]
[370014672,1751833835039,-150.0,0.00018619,2]
[370014673,1751833835049,-200.0,0.00018619,2]
[370014674,1751833835059,-500.0,0.00018619,2]
[370014675,1751833835371,-1312.0,0.00018619,2]
[370014676,1751833835382,-500.0,0.00018619,2]
[370014677,1751833835392,-151.0,0.00018619,2]
[370014678,1751833835402,-731.67726837,0.00018647,2]
[370014679,1751833835412,-150.0,0.00018669,2]
[370014680,1751833835422,-150.0,0.0001868,2]
[370014681,1751833835431,-150.0,0.00018681,2]
[370014682,1751833835441,-388.370666,0.00018696,2]
[370014683,1751833835451,-150.0,0.00018699,2]
[370014684,1751833835461,-1400.0,0.000187,6]
[370014685,1751833835471,-150.0,0.00018712,2]
[370014686,1751833835481,-150.0,0.00018713,2]
[370014687,1751833835491,-150.0,0.00018713,2]
[370014688,1751833835500,-350.0,0.00018713,2]
[370014689,1751833835510,-150.0,0.00018713,2]
[370014690,1751833835519,-771.0,0.00018713,2]
[370014691,1751833835528,-150.0,0.00018713,2]
[370014692,1751833835539,-731.67726822,0.00018713,2]
[370014693,1751833835549,-150.0,0.00018737,2]
[370014694,1751833835558,-150.0,0.00018747,2]
[370014695,1751833835568,-300.0,0.00018752,2]
[370014696,1751833835577,-151.29755904,0.00018752,2]
[370014697,1751833835586,-356.0,0.00018769,2]
[370014698,1751833835595,-731.67726822,0.00018779,2]
[370014699,1751833835605,-150.0,0.00018779,2]
[370014700,1751833835614,-2133.62667156,0.00018784,2]
[370014701,1751833835623,-172.6,0.0001879,2]
[370014702,1751833835633,-151.0,0.000188,2]
[370014703,1751833835643,-180.710778,0.000188,2]
[370014704,1751833835652,-180.710778,0.000188,2]
[370014705,1751833835662,-1367.91,0.000188,2]
[370014706,1751833835672,-2900.0,0.000188,6]
[370014707,1751833835681,-500.0,0.00018837,2]
[370014708,1751833835691,-1098.0,0.00018837,2]
[370014709,1751833835700,-731.67726822,0.00018845,2]
[370014710,1751833835709,-500.79685,0.0001889,2]
[370014711,1751833835719,-500.0,0.00018893,2]
[370014712,1751833835728,-500.0,0.00018893,2]
[370014713,1751833835738,-250.0,0.00018893,2]
[370014714,1751833835747,-350.0,0.00018893,2]
[370014715,1751833835756,-1312.0,0.00018893,2]
[370014716,1751833835765,-500.0,0.00018893,2]
[370014717,1751833835775,-356.0,0.00018893,2]
[370014718,1751833835784,-1367.91,0.000189,2]
[370014719,1751833835793,-151.0,0.000189,2]
[370014720,1751833835803,-151.0,0.000189,2]
[370014721,1751833835812,-198.984039,0.000189,2]
[370014722,1751833835822,-151.0,0.000189,2]
[370014723,1751833835831,-154.077526,0.000189,2]
[370014724,1751833835840,-274.636803,0.000189,2]
[370014725,1751833835853,-274.636803,0.000189,2]
[370014726,1751833835863,-151.0,0.000189,2]
[370014727,1751833835872,-4400.0,0.000189,6]
[370014728,1751833835881,-1201.05,0.000189,2]
[370014729,1751833835891,-150.0,0.00018909,2]
[370014730,1751833835900,-356.0,0.0001891,2]
[370014731,1751833835910,-731.67726822,0.00018911,2]
[370014732,1751833835919,-150.0,0.00018914,2]
[370014733,1751833835929,-200.0,0.00018925,2]
[370014734,1751833835938,-150.0,0.00018943,2]
[370014735,1751833835948,-228.882,0.00018967,2]
[370014736,1751833835958,-2500.0,0.00018967,2]
[370014737,1751833835967,-529.68333243,0.0001897,2]
[370014738,1751833835977,-2133.62667156,0.0001897,2]
[370014739,1751833835986,-731.67726822,0.00018977,2]
[370014740,1751833835996,-1394.4041,0.00018978,2]
[370014741,1751833836007,-150.0,0.00018987,2]
[370014742,1751833836016,-200.0,0.00018987,2]
[370014743,1751833836026,-150.0,0.00018987,2]
[370014744,1751833836035,-771.0,0.00018987,2]
[370014745,1751833836045,-200.0,0.00018987,2]
[370014746,1751833836056,-356.0,0.00018991,2]
[370014747,1751833836066,-1000.0,0.00019,2]
[370014748,1751833836076,-1000.0,0.00019,2]
[370014749,1751833836085,-151.0,0.00019,2]
[370014750,1751833836095,-180.710778,0.00019,2]
[370014751,1751833836105,-180.710778,0.00019,2]
[370014752,1751833836114,-151.0,0.00019,2]
[370014753,1751833836124,-151.0,0.00019,2]
[370014754,1751833836134,-1888.0,0.00019,2]
[370014755,1751833836144,-274.636803,0.00019,2]
[370014756,1751833836154,-274.636803,0.00019,2]
[370014757,1751833836164,-151.0,0.00019,2]
[370014758,1751833836175,-356.0,0.00019003,2]
[370014759,1751833836185,-2018.0,0.00019011,2]
[370014760,1751833836195,-1000.0,0.00019015,2]
[370014761,1751833836205,-278.78,0.00019016,2]
[370014762,1751833836214,-151.0,0.00019025,2]
[370014763,1751833836224,-731.67726822,0.00019043,2]
[370014764,1751833836234,-356.0,0.00019045,2]
[370014765,1751833836245,-241.83,0.00019058,2]
[370014766,1751833836255,-151.0,0.00019066,2]
[370014767,1751833836264,-151.0,0.00019067,2]
[370014768,1751833836273,-151.0,0.00019067,2]
[370014769,1751833836283,-151.0,0.00019067,2]
[370014770,1751833836292,-151.0,0.00019067,2]
[370014771,1751833836305,-180.710778,0.00019067,2]
[370014772,1751833836314,-180.710778,0.00019067,2]
[370014773,1751833836324,-5678.6343881,0.00019067,2]
[370014774,1751833836333,-151.0,0.00019068,2]
[370014775,1751833836342,-172.6,0.00019068,2]
[370014776,1751833836351,-172.6,0.00019068,2]
[370014777,1751833836360,-252.778814,0.0001907,2]
[370014778,1751833836370,-151.0,0.0001907,2]
[370014779,1751833836379,-180.710778,0.0001907,2]
[370014780,1751833836388,-180.710778,0.0001907,2]
[370014781,1751833836398,-151.0,0.0001907,2]
[370014782,1751833836408,-151.0,0.0001907,2]
[370014783,1751833836417,-274.636803,0.0001907,2]
[370014784,1751833836426,-274.636803,0.0001907,2]
[370014785,1751833836436,-150.0,0.0001907,2]
[370014786,1751833836446,-150.0,0.00019072,2]
[370014787,1751833836456,-1411.80291192,0.00019072,2]
[370014788,1751833836465,-1000.0,0.00019073,2]
[370014789,1751833836475,-150.0,0.00019076,2]
[370014790,1751833836484,-151.0,0.00019076,2]
[370014791,1751833836494,-713.152711,0.00019077,2]
[370014792,1751833836504,-200.0,0.00019078,2]
[370014793,1751833836513,-151.0,0.00019078,2]
[370014794,1751833836522,-151.0,0.00019078,2]
[370014795,1751833836532,-151.0,0.00019078,2]